bitfinex/quotes_BTCUSD_20230120
["timestamp","ask_amount","ask_price","bid_price","bid_amount"]
[1674233280716,0.309836,21357.0,21356.0,0.014]
[1674233280963,0.309836,21357.0,21355.0,0.33073644]
[1674233281222,0.065289,21356.0,21353.0,0.38980175]
[1674233281743,0.304839,21355.0,21353.0,0.38980175]
[1674233281754,0.304839,21355.0,21353.0,0.38480175]
[1674233282004,0.304839,21355.0,21350.0,0.35111578]
[1674233282005,0.197189,21354.0,21350.0,0.35111578]
[1674233282267,0.304839,21353.0,21350.0,0.46838]
[1674233282519,0.086,21357.0,21354.0,0.41572293]
[1674233282788,0.14196831,21358.0,21354.0,0.88401593]
[1674233283042,0.28768664,21361.0,21354.0,0.468293]
[1674233283294,0.1667124,21361.0,21355.0,0.19432097]
[1674233283554,0.086,21357.0,21356.0,0.66257097]
[1674233283796,0.12997214,21362.0,21356.0,0.61825]
[1674233284051,0.087,21361.0,21357.0,0.19432097]
[1674233284308,0.16424337,21361.0,21357.0,0.66253497]
[1674233285073,0.28634628,21361.0,21357.0,0.468214]
[1674233285361,0.16424337,21361.0,21357.0,0.468214]
[1674233285583,0.16424337,21361.0,21357.0,0.66253497]
[1674233285832,0.19724337,21361.0,21357.0,0.66353497]
[1674233286102,1.7443372,21365.0,21358.0,0.44754025]
[1674233286350,1.7443372,21365.0,21359.0,0.66250097]
[1674233286351,0.086,21361.0,21359.0,0.66250097]
[1674233286662,0.086,21361.0,21359.0,0.61818]
[1674233286883,0.119,21361.0,21359.0,0.61818]
[1674233287413,0.14026313,21365.0,21360.0,0.315838]
[1674233287674,0.0875662,21365.0,21361.0,1.44085697]
[1674233287967,0.12433259,21364.0,21361.0,1.13058297]
[1674233288227,0.0875662,21365.0,21361.0,1.13058297]
[1674233288492,0.21594062,21365.0,21361.0,1.13058297]
[1674233288785,0.0005662,21365.0,21362.0,0.303312]
[1674233289047,0.0005662,21365.0,21363.0,1.25682]
[1674233289535,0.0875662,21365.0,21364.0,0.333725]
[1674233289795,0.0005662,21365.0,21364.0,0.801802]
[1674233290071,0.0005662,21365.0,21364.0,0.77748445]
[1674233290072,0.0805662,21365.0,21364.0,0.77748445]
[1674233290331,0.0005662,21365.0,21364.0,0.92748445]
[1674233290589,0.0795662,21365.0,21364.0,0.92248445]
[1674233291108,0.0795662,21365.0,21364.0,0.618077]
[1674233291382,0.0795062,21365.0,21364.0,0.15]
[1674233291641,0.0795062,21365.0,21364.0,0.90095406]
[1674233291923,0.0795062,21365.0,21364.0,0.801353]
[1674233292749,0.0005062,21365.0,21364.0,0.468077]
[1674233293009,0.0005062,21365.0,21364.0,0.42351018]
[1674233293010,0.0795062,21365.0,21364.0,0.42351018]
[1674233293296,0.0005062,21365.0,21364.0,0.42251018]
[1674233293561,0.0795062,21365.0,21364.0,0.42351018]
[1674233293820,0.0795062,21365.0,21364.0,0.39817435]
[1674233294342,0.0795062,21365.0,21364.0,0.82709121]
[1674233294745,0.0795062,21365.0,21364.0,1.10766466]
[1674233294748,0.0795062,21365.0,21364.0,1.50386466]
[1674233294963,1e-08,21365.0,21364.0,1.30954369]
[1674233295214,1e-08,21365.0,21364.0,1.72259456]
[1674233295396,1e-08,21365.0,21364.0,1.60263379]
[1674233295647,0.02523388,21367.0,21364.0,2.35335745]
[1674233295906,0.01923,21370.0,21366.0,0.15]
[1674233296160,0.01923,21370.0,21369.0,0.2466]
[1674233296398,0.01923,21370.0,21369.0,1.98675969]
[1674233297253,0.14133291,21370.0,21369.0,1.267958]
[1674233297409,0.01923,21370.0,21369.0,0.402024]
[1674233297657,0.01923,21370.0,21368.0,0.40666859]
[1674233297658,0.17100312,21370.0,21368.0,0.40666859]
[1674233297919,0.17100312,21370.0,21365.0,1.513151]
[1674233298150,0.12210291,21369.0,21365.0,0.468051]
[1674233298393,0.45167391,21368.0,21365.0,0.43819782]
[1674233298633,0.12210291,21368.0,21365.0,0.43819782]
[1674233298884,0.12210291,21368.0,21364.0,0.468069]
[1674233299130,0.45003091,21367.0,21365.0,0.089]
[1674233299376,0.23852529,21366.0,21362.0,0.85655375]
[1674233299622,0.312746,21365.0,21362.0,0.618105]
[1674233299877,0.12210291,21366.0,21362.0,0.468105]
[1674233300128,0.12210291,21365.0,21360.0,0.468147]
[1674233300377,0.12210291,21364.0,21361.0,0.41028123]
[1674233300623,0.311797,21363.0,21362.0,0.089]
[1674233301401,0.20526148,21366.0,21364.0,0.38510653]
[1674233301665,0.20526148,21366.0,21364.0,0.5794275]
[1674233301907,0.33928496,21368.0,21365.0,0.39096089]
[1674233302159,0.18116752,21367.0,21365.0,0.58528186]
[1674233302403,0.328984,21366.0,21365.0,0.39096089]
[1674233302900,1.173729,21370.0,21364.0,0.468076]
[1674233303143,0.004,21368.0,21365.0,0.58399442]
[1674233303385,0.004,21368.0,21366.0,0.19432097]
[1674233303622,0.004,21368.0,21367.0,0.296885]
[1674233303879,0.019229,21370.0,21367.0,0.49120597]
[1674233304139,0.019229,21370.0,21368.0,0.53374797]
[1674233304387,0.019229,21370.0,21369.0,2.17134566]
[1674233304634,0.00056746,21371.0,21370.0,0.15]
[1674233304907,0.00056746,21371.0,21370.0,1.91632069]
[1674233305412,0.00056746,21371.0,21370.0,1.69457643]
[1674233305647,0.00056746,21371.0,21370.0,1.91632069]
[1674233305892,0.00056746,21371.0,21370.0,1.78257643]
[1674233306132,0.00056746,21371.0,21370.0,1.50792069]
[1674233306382,0.01049,21372.0,21371.0,0.60951018]
[1674233306620,0.01049,21372.0,21371.0,2.12081187]
[1674233306869,0.01049,21372.0,21371.0,1.66130169]
[1674233307116,0.09515565,21380.0,21372.0,0.15]
[1674233307391,0.57217291,21379.0,21373.0,0.52919221]
[1674233307649,0.03700001,21376.0,21374.0,0.19432097]
[1674233307890,0.03200001,21376.0,21372.0,0.467886]
[1674233308133,0.03200001,21376.0,21373.0,0.36391525]
[1674233308867,0.04300001,21376.0,21374.0,0.007]
[1674233309121,0.03194001,21376.0,21373.0,0.36403525]
[1674233309374,0.04294001,21376.0,21373.0,0.36803525]
[1674233309621,0.27691901,21379.0,21373.0,0.36803525]
[1674233309895,0.40310518,21378.0,21374.0,0.53729795]
[1674233310140,0.001,21376.0,21374.0,0.54429795]
[1674233310388,0.001,21376.0,21374.0,0.007]
[1674233311132,0.06959713,21380.0,21373.0,0.15412]
[1674233311133,0.02579477,21379.0,21373.0,0.15012]
[1674233311379,0.14889768,21379.0,21374.0,0.52380312]
[1674233311625,0.05337624,21378.0,21374.0,0.57794781]
[1674233311874,0.001,21376.0,21374.0,0.39062684]
[1674233312122,0.001,21376.0,21374.0,0.007]
[1674233312427,0.001,21376.0,21374.0,0.20132097]
[1674233312670,0.001,21376.0,21375.0,0.307362]
[1674233312937,0.02079477,21379.0,21375.0,0.457362]
[1674233313183,1.0234,21381.0,21375.0,0.15]
[1674233313464,0.17667,21376.0,21375.0,0.15]
[1674233313670,0.17667,21376.0,21373.0,0.00012]
[1674233313671,0.618786,21376.0,21373.0,0.00012]
[1674233313918,0.079944,21375.0,21374.0,6e-05]
[1674233314163,0.326544,21375.0,21374.0,6e-05]
[1674233314410,0.626544,21375.0,21374.0,6e-05]
[1674233314667,0.785044,21375.0,21374.0,6e-05]
[1674233314915,2.04063822,21375.0,21374.0,6e-05]
[1674233315169,3.12677422,21375.0,21374.0,6e-05]
[1674233315455,3.48117648,21375.0,21374.0,0.00012]
[1674233315687,6e-05,21371.0,21365.0,4.2158]
[1674233315962,6e-05,21371.0,21364.0,0.40655878]
[1674233315963,0.17667,21366.0,21364.0,0.40655878]
[1674233316182,0.17667,21366.0,21360.0,0.00174176]
[1674233316183,0.211444,21365.0,21363.0,0.42923451]
[1674233316421,0.319516,21364.0,21363.0,0.42894451]
[1674233316662,0.328016,21364.0,21363.0,0.42894451]
[1674233317641,0.328016,21364.0,21360.0,0.00174176]
[1674233317899,0.211344,21363.0,21362.0,0.4380865]
[1674233318124,0.211344,21363.0,21360.0,0.00155176]
[1674233318400,0.211344,21363.0,21360.0,0.39011183]
[1674233318401,0.1314,21363.0,21360.0,0.39011183]
[1674233318655,0.4314,21363.0,21360.0,0.00155176]
[1674233318909,0.17667,21362.0,21360.0,0.00155176]
[1674233319159,0.19245,21361.0,21360.0,0.00155176]
[1674233319675,0.31485,21361.0,21360.0,0.00155176]
[1674233319935,0.643756,21361.0,21360.0,0.00155176]
[1674233320179,1.066156,21361.0,21360.0,0.00155176]
[1674233320430,1.3906445,21361.0,21360.0,0.00155176]
[1674233320667,1.4816445,21361.0,21360.0,0.00155176]
[1674233320966,1.54044711,21361.0,21360.0,0.00155176]
[1674233321200,0.61215861,21361.0,21360.0,5.176e-05]
[1674233321481,0.42820861,21361.0,21360.0,5.176e-05]
[1674233321729,0.09930261,21361.0,21356.0,0.14]
[1674233321967,0.01400852,21360.0,21356.0,0.34259205]
[1674233322210,0.091,21361.0,21356.0,0.34259205]
[1674233322463,0.36721258,21361.0,21356.0,0.34259205]
[1674233322708,0.1234,21358.0,21356.0,0.34259205]
[1674233322953,0.1234,21358.0,21355.0,0.00148151]
[1674233323203,0.22610001,21357.0,21356.0,0.45542477]
[1674233323933,0.34890001,21357.0,21356.0,0.45542477]
[1674233324176,0.35740001,21357.0,21356.0,0.45542477]
[1674233324728,0.22610001,21357.0,21355.0,0.00148151]
[1674233324968,0.31710001,21357.0,21356.0,0.36926145]
[1674233325214,0.22610001,21357.0,21356.0,0.36926145]
[1674233325459,0.31710001,21357.0,21356.0,0.36926145]
[1674233325710,0.34950001,21357.0,21355.0,0.00148151]
[1674233325950,0.31505,21356.0,21355.0,0.00148151]
[1674233326225,0.31505,21356.0,21355.0,0.438586]
[1674233326765,0.46505,21356.0,21355.0,0.00148151]
[1674233326976,0.6810872,21356.0,21355.0,0.00148151]
[1674233327725,1.4035552,21356.0,21355.0,0.00148151]
[1674233327989,1.0125552,21356.0,21355.0,0.00148151]
[1674233328239,1.1035552,21356.0,21355.0,0.00148151]
[1674233328484,0.796018,21356.0,21354.0,9.41916027]
[1674233328729,0.372092,21355.0,21354.0,9.41916027]
[1674233328969,0.1227,21355.0,21354.0,8.99148151]
[1674233329701,0.3637,21355.0,21354.0,8.99148151]
[1674233329939,0.702252,21355.0,21354.0,8.99148151]
[1674233330194,0.9451,21355.0,21354.0,8.99148151]
[1674233330432,1.872536,21355.0,21354.0,8.99148151]
[1674233330683,2.26723769,21355.0,21354.0,8.99148151]
[1674233330927,2.84083988,21355.0,21354.0,8.77164998]
[1674233331190,4.11327495,21355.0,21354.0,1.74934998]
[1674233331440,4.30537495,21355.0,21354.0,0.52837008]
[1674233331689,4.41650066,21355.0,21354.0,0.52577008]
[1674233331930,4.55567564,21355.0,21354.0,0.52577008]
[1674233332173,0.1,21354.0,21353.0,0.00160779]
[1674233332469,0.1,21354.0,21347.0,0.38128773]
[1674233332470,2.20791769,21354.0,21347.0,0.38128773]
[1674233332707,0.2824,21351.0,21347.0,0.5756087]
[1674233332950,0.556712,21350.0,21347.0,0.00175092]
[1674233333201,0.469636,21349.0,21347.0,0.00175092]
[1674233333442,0.1821264,21348.0,21347.0,0.00175092]
[1674233333713,0.088324,21348.0,21347.0,0.00175092]
[1674233333951,0.556751,21348.0,21347.0,0.00175092]
[1674233334195,0.715251,21348.0,21347.0,0.00175092]
[1674233334467,0.874251,21348.0,21347.0,0.00175092]
[1674233334706,0.758377,21349.0,21347.0,0.00175092]
[1674233334970,0.4405484,21348.0,21347.0,0.00175092]
[1674233335216,0.469607,21348.0,21347.0,0.00175092]
[1674233335465,0.319607,21348.0,21347.0,0.42774939]
[1674233335715,0.311107,21348.0,21347.0,0.35367309]
[1674233335951,0.311107,21348.0,21346.0,0.00175092]
[1674233336190,0.091,21348.0,21346.0,0.40317604]
[1674233336432,0.311107,21347.0,21346.0,0.19607189]
[1674233336696,0.091,21348.0,21346.0,0.41288583]
[1674233336944,1.066646,21351.0,21347.0,0.36107782]
[1674233337178,0.091,21348.0,21347.0,0.55539879]
[1674233337426,0.0085,21350.0,21347.0,0.36107782]
[1674233337679,0.091,21348.0,21347.0,0.36107782]
[1674233337934,0.0085,21350.0,21347.0,0.36107782]
[1674233338183,0.091,21348.0,21347.0,0.36107782]
[1674233338441,0.091,21348.0,21346.0,0.00175092]
[1674233338948,0.157675,21354.0,21347.0,0.493913]
[1674233339191,0.15,21353.0,21348.0,0.19432097]
[1674233339426,0.157675,21354.0,21349.0,0.19432097]
[1674233339688,0.1358,21351.0,21350.0,0.21375307]
[1674233339928,0.1358,21351.0,21348.0,0.59112]
[1674233340177,0.1358,21351.0,21349.0,0.15]
[1674233340421,0.1358,21351.0,21350.0,0.322158]
[1674233341396,0.1358,21351.0,21350.0,0.444758]
[1674233341676,0.1358,21351.0,21350.0,0.462758]
[1674233341937,0.1358,21351.0,21350.0,0.444758]
[1674233342179,0.1358,21351.0,21350.0,0.594758]
[1674233342729,0.1358,21351.0,21350.0,0.634758]
[1674233342999,0.0858,21351.0,21350.0,0.594758]
[1674233343282,0.0858,21351.0,21350.0,0.687758]
[1674233343536,0.0858,21351.0,21350.0,0.594758]
[1674233343780,0.0858,21351.0,21350.0,0.688758]
[1674233344276,0.0858,21351.0,21350.0,0.594758]
[1674233344516,0.0858,21351.0,21350.0,0.688358]
[1674233344759,0.17696,21361.0,21351.0,0.15]
[1674233345008,0.17696,21361.0,21353.0,0.591511]
[1674233345252,0.0373,21357.0,21355.0,0.15]
[1674233346013,0.0373,21357.0,21356.0,0.468252]
[1674233346271,0.0373,21357.0,21356.0,0.805076]
[1674233346773,0.0373,21357.0,21356.0,0.927876]
[1674233347023,0.02207866,21360.0,21356.0,1.49030927]
[1674233347268,0.02207866,21360.0,21357.0,0.44741]
[1674233347510,0.02207866,21360.0,21358.0,0.31368]
[1674233347761,0.02207866,21360.0,21359.0,0.441482]
[1674233348006,0.02343966,21365.0,21359.0,1.00245137]
[1674233348246,0.02343966,21365.0,21362.0,0.1226]
[1674233348494,0.02343966,21365.0,21363.0,0.51061897]
[1674233348745,0.02343966,21365.0,21364.0,0.64892297]
[1674233349012,0.02343966,21365.0,21364.0,0.454602]
[1674233350020,0.02324206,21365.0,21364.0,0.454602]
[1674233350261,0.02324206,21365.0,21364.0,0.698602]
[1674233350504,0.15,21371.0,21364.0,1.27612466]
[1674233350748,0.15,21371.0,21366.0,0.936062]
[1674233350998,0.15,21371.0,21367.0,0.86836237]
[1674233351259,0.00012,21374.0,21368.0,0.77434]
[1674233351494,0.1234,21376.0,21369.0,0.19432097]
[1674233351736,0.15,21375.0,21370.0,0.19432097]
[1674233351995,0.311107,21374.0,21371.0,0.19432097]
[1674233352244,0.1234,21376.0,21372.0,0.34680148]
[1674233352506,0.2734,21376.0,21372.0,0.54112245]
[1674233352775,0.311107,21375.0,21372.0,0.54112245]
[1674233353044,1.36369773,21378.0,21372.0,0.54112245]
[1674233353295,1.1279,21378.0,21373.0,0.19432097]
[1674233353585,1.1121,21380.0,21374.0,0.19432097]
[1674233353586,0.310462,21377.0,21374.0,0.19432097]
[1674233353807,1.124,21382.0,21375.0,0.19432097]
[1674233354065,1.124,21382.0,21376.0,0.19432097]
[1674233354553,0.3348232,21381.0,21376.0,0.19432097]
[1674233354796,0.3348232,21381.0,21377.0,0.44836025]
[1674233354797,0.0237162,21381.0,21377.0,0.44836025]
[1674233355039,0.306107,21380.0,21377.0,0.42394756]
[1674233355277,0.02002007,21380.0,21377.0,0.42394756]
[1674233355539,0.0237162,21379.0,21376.0,0.41366699]
[1674233355782,0.0237162,21379.0,21377.0,0.008]
[1674233355783,0.18395,21378.0,21377.0,0.008]
[1674233356030,0.498613,21378.0,21371.0,0.15]
[1674233356276,0.498613,21378.0,21374.0,0.36958644]
[1674233356277,0.0237162,21377.0,21374.0,0.36958644]
[1674233356517,0.306163,21376.0,21371.0,0.34432097]
[1674233356763,0.306163,21376.0,21371.0,0.33075698]
[1674233356764,0.0237162,21375.0,21371.0,0.33075698]
[1674233357010,0.0897,21373.0,21367.0,0.15]
[1674233357278,0.02351864,21372.0,21370.0,0.35748805]
[1674233357589,0.306029,21371.0,21366.0,0.16792]
[1674233357874,0.02351864,21370.0,21366.0,0.16792]
[1674233358603,0.02351864,21369.0,21366.0,0.33101197]
[1674233358840,0.11153813,21373.0,21365.0,1.739252]
[1674233359074,0.11321864,21373.0,21367.0,0.15]
[1674233359316,0.11321864,21373.0,21368.0,0.19432097]
[1674233359317,0.0897,21373.0,21368.0,0.19432097]
[1674233359562,0.0897,21373.0,21369.0,0.19432097]
[1674233360100,0.0897,21373.0,21370.0,0.41085443]
[1674233360356,0.13901176,21373.0,21370.0,0.41085443]
[1674233360625,0.02520199,21372.0,21370.0,0.41085443]
[1674233361336,0.02520199,21372.0,21370.0,0.41885443]
[1674233361573,0.306163,21371.0,21370.0,0.41085443]
[1674233361809,0.02520199,21372.0,21370.0,0.41885443]
[1674233362041,0.10360118,21373.0,21370.0,0.41885443]
[1674233362277,0.0897,21373.0,21371.0,0.19432097]
[1674233362759,0.0897,21373.0,21372.0,0.3569201]
[1674233363935,0.0897,21373.0,21372.0,0.3649201]
[1674233364663,0.11321864,21373.0,21372.0,0.008]
[1674233364896,0.42185886,21373.0,21372.0,0.008]
[1674233366382,0.395863,21373.0,21372.0,0.008]
[1674233366611,0.704363,21373.0,21372.0,0.008]
[1674233367571,0.404363,21373.0,21372.0,0.008]
[1674233367804,0.704363,21373.0,21372.0,0.008]
[1674233368045,0.8658946,21373.0,21372.0,0.008]
[1674233368286,0.15,21372.0,21363.0,3.7021]
[1674233368550,0.70166074,21371.0,21363.0,2.87512097]
[1674233368784,0.2662,21368.0,21362.0,0.56113379]
[1674233369080,0.32968164,21367.0,21362.0,0.56113379]
[1674233369314,0.02351864,21366.0,21362.0,0.56113379]
[1674233369794,0.43607,21368.0,21364.0,0.34076335]
[1674233370022,0.43607,21368.0,21364.0,0.53508432]
[1674233370023,0.091,21367.0,21364.0,0.53508432]
[1674233370296,0.091,21367.0,21362.0,0.54618017]
[1674233370533,0.091,21366.0,21362.0,0.54618017]
[1674233370759,0.11886318,21366.0,21363.0,0.4480303]
[1674233370995,0.091,21366.0,21363.0,0.4480303]
[1674233371447,0.02679343,21367.0,21363.0,0.4480303]
[1674233371681,0.11779343,21367.0,21363.0,0.64235127]
[1674233371936,0.05031207,21367.0,21363.0,0.4480303]
[1674233372230,0.42211784,21366.0,21363.0,0.4480303]
[1674233372470,0.02170443,21365.0,21363.0,0.4480303]
[1674233372810,0.04677757,21366.0,21363.0,0.4480303]
[1674233373005,0.306163,21365.0,21363.0,0.4480303]
[1674233373233,0.02325893,21366.0,21363.0,0.4480303]
[1674233373482,0.306163,21365.0,21363.0,0.4480303]
[1674233373716,0.13145545,21366.0,21363.0,0.4480303]
[1674233373951,0.298121,21365.0,21363.0,0.4480303]
[1674233374189,0.13145545,21366.0,21363.0,0.4480303]
[1674233374424,0.306163,21365.0,21363.0,0.4480303]
[1674233374669,0.11425893,21366.0,21363.0,0.4480303]
[1674233374901,0.306163,21365.0,21363.0,0.64235127]
[1674233375147,0.091,21366.0,21363.0,0.64235127]
[1674233375148,0.02512917,21367.0,21363.0,0.4480303]
[1674233375425,0.0995,21366.0,21363.0,0.64235127]
[1674233375676,0.306163,21365.0,21363.0,0.19432097]
[1674233375923,0.091,21366.0,21364.0,0.0194321]
[1674233376150,0.31692419,21368.0,21365.0,0.40098486]
[1674233376395,0.091,21366.0,21365.0,0.59530583]
[1674233376657,0.29340555,21368.0,21365.0,0.40098486]
[1674233376916,0.29340555,21368.0,21365.0,0.59530583]
[1674233377154,0.2662,21368.0,21365.0,0.19432097]
[1674233377387,0.2662,21368.0,21365.0,0.54231567]
[1674233377629,0.091,21366.0,21365.0,0.3479947]
[1674233377903,0.2662,21368.0,21365.0,0.3479947]
[1674233378138,0.37957432,21368.0,21365.0,0.3479947]
[1674233378850,0.091,21366.0,21365.0,0.3479947]
[1674233379328,0.2662,21368.0,21365.0,0.3479947]
[1674233380564,0.091,21366.0,21365.0,0.3479947]
[1674233380802,0.2662,21368.0,21365.0,0.3479947]
[1674233381042,0.3572,21368.0,21365.0,0.3479947]
[1674233381269,0.28702603,21368.0,21365.0,0.3479947]
[1674233381512,0.02569147,21367.0,21365.0,0.3479947]
[1674233381750,0.306163,21366.0,21365.0,0.3479947]
[1674233381994,0.02569147,21367.0,21365.0,0.3479947]
[1674233382474,0.2662,21368.0,21365.0,0.3479947]
[1674233382714,0.091,21366.0,21365.0,0.54231567]
[1674233383017,0.091,21366.0,21365.0,0.3479947]
[1674233383748,0.2662,21368.0,21365.0,0.3479947]
[1674233384003,0.091,21367.0,21365.0,0.3479947]
[1674233384258,0.2662,21368.0,21365.0,0.3479947]
[1674233384499,0.091,21366.0,21365.0,0.3479947]
[1674233384726,0.29026469,21368.0,21365.0,0.3479947]
[1674233384999,0.091,21367.0,21365.0,0.3479947]
[1674233385226,0.29026469,21368.0,21365.0,0.3479947]
[1674233385457,0.29026469,21368.0,21365.0,0.8160397]
[1674233385940,0.2662,21368.0,21365.0,0.8160397]
[1674233386183,0.2662,21368.0,21365.0,0.468045]
[1674233386440,0.091,21366.0,21365.0,0.66236597]
[1674233386674,0.2662,21368.0,21366.0,0.15]
[1674233386905,0.3492,21368.0,21367.0,0.318027]
[1674233387141,0.3492,21368.0,21367.0,0.43137681]
[1674233387617,0.2662,21368.0,21367.0,0.43137681]
[1674233387869,0.3492,21368.0,21367.0,0.43237681]
[1674233388489,0.3492,21368.0,21367.0,0.3342943]
[1674233389527,0.2662,21368.0,21367.0,0.33322526]
[1674233389794,0.3492,21368.0,21367.0,0.33422526]
[1674233390051,0.3492,21368.0,21367.0,0.001]
[1674233390325,0.67714848,21368.0,21367.0,0.001]
[1674233390843,1.61342747,21368.0,21367.0,0.001]
[1674233391395,1.59164199,21368.0,21367.0,0.001]
[1674233391664,1.28547899,21368.0,21367.0,0.001]
[1674233391950,1.59164199,21368.0,21367.0,0.001]
[1674233392201,1.59164199,21368.0,21366.0,0.40667531]
[1674233392458,0.93627899,21367.0,21366.0,0.39667531]
[1674233392731,1.24244199,21367.0,21366.0,0.39667531]
[1674233393277,1.24244199,21367.0,21366.0,0.39767531]
[1674233394051,1.28355306,21367.0,21364.0,0.84054417]
[1674233394342,1.28355306,21367.0,21366.0,0.001]
[1674233394343,0.42644398,21367.0,21366.0,0.001]
[1674233394598,1.68426451,21367.0,21366.0,0.001]
[1674233394856,0.15,21366.0,21357.0,0.34103883]
[1674233395118,1.19259187,21364.0,21355.0,0.468254]
[1674233395418,0.11200787,21360.0,21358.0,0.35399216]
[1674233395682,0.28001967,21362.0,21358.0,0.35399216]
[1674233396180,0.306163,21361.0,21359.0,0.22972019]
[1674233396182,0.28001967,21365.0,21359.0,0.22972019]
[1674233396437,0.092,21364.0,21360.0,1.20044149]
[1674233396699,0.5335944,21366.0,21361.0,0.15]
[1674233396959,0.092,21362.0,21361.0,0.618137]
[1674233397732,0.092,21362.0,21360.0,0.88787085]
[1674233397999,0.40170674,21363.0,21360.0,0.88787085]
[1674233398531,0.306163,21362.0,21360.0,0.88787085]
[1674233398784,0.40170674,21363.0,21360.0,0.88787085]
[1674233399040,0.40170674,21363.0,21361.0,0.35649201]
[1674233399324,1.1831,21362.0,21361.0,0.82462201]
[1674233399584,1.2751,21362.0,21361.0,0.82462201]
[1674233399874,1.1831,21362.0,21361.0,0.82462201]
[1674233400131,1.1831,21362.0,21361.0,0.46813]
[1674233400388,1.1831,21362.0,21361.0,0.85180595]
[1674233400647,1.1831,21362.0,21361.0,0.53367595]
[1674233401137,1.1831,21362.0,21361.0,0.38367595]
[1674233401452,1.2751,21362.0,21361.0,0.38367595]
[1674233401710,1.581263,21362.0,21360.0,0.468143]
[1674233401970,1.29861864,21362.0,21360.0,0.468143]
[1674233402244,0.306163,21361.0,21359.0,0.81656562]
[1674233402534,0.306163,21361.0,21358.0,0.468207]
[1674233402535,0.02351864,21361.0,21358.0,0.468207]
[1674233402793,0.306163,21360.0,21358.0,0.4404908]
[1674233403108,1.76322887,21362.0,21357.0,0.46822]
[1674233403397,0.65498716,21361.0,21359.0,0.44093493]
[1674233403651,1.62926432,21362.0,21360.0,0.15716679]
[1674233403964,1.53726432,21362.0,21360.0,0.62533079]
[1674233404230,1.62926432,21362.0,21361.0,0.16844387]
[1674233404517,1.84342732,21362.0,21360.0,1.09349479]
[1674233404771,0.69350256,21361.0,21360.0,0.936328]
[1674233405027,0.69350256,21361.0,21360.0,0.468164]
[1674233405277,0.29189936,21359.0,21358.0,0.468186]
[1674233405556,0.28689936,21359.0,21357.0,0.468214]
[1674233405809,0.28689936,21359.0,21356.0,0.34978152]
[1674233405810,0.306163,21358.0,21356.0,0.34978152]
[1674233406071,0.02351864,21358.0,21355.0,0.468259]
[1674233406327,0.306163,21357.0,21356.0,1.04931455]
[1674233406600,0.306163,21357.0,21356.0,0.81676912]
[1674233406852,0.306163,21357.0,21356.0,0.34851712]
[1674233407372,0.398163,21357.0,21356.0,0.34851712]
[1674233407639,0.306163,21357.0,21356.0,0.34851712]
[1674233407882,0.398163,21357.0,21356.0,0.34851712]
[1674233408141,0.397018,21357.0,21356.0,0.34851712]
[1674233408410,0.397018,21357.0,21354.0,0.47001334]
[1674233408641,0.092,21357.0,21355.0,0.36248355]
[1674233408902,0.306163,21356.0,21355.0,0.36248355]
[1674233409714,0.38025998,21358.0,21355.0,0.83075755]
[1674233409978,1.2303,21356.0,21355.0,0.66259497]
[1674233410232,1.2303,21356.0,21355.0,0.3713578]
[1674233410491,1.3213,21356.0,21355.0,0.3713578]
[1674233410788,1.627463,21356.0,21354.0,0.00172034]
[1674233411070,1.53771768,21356.0,21354.0,0.00172034]
[1674233411338,0.306163,21355.0,21354.0,0.00172034]
[1674233411649,0.73952034,21355.0,21354.0,0.00172034]
[1674233412119,1.20779434,21355.0,21354.0,0.00172034]
[1674233412412,0.73952034,21355.0,21354.0,0.00172034]
[1674233413162,1.024937,21355.0,21354.0,0.00172034]
[1674233413419,1.88385305,21355.0,21354.0,0.00172034]
[1674233413677,0.78880505,21355.0,21350.0,0.001]
[1674233413924,0.32968164,21354.0,21350.0,0.43988102]
[1674233414221,0.02351864,21354.0,21350.0,0.43988102]
[1674233414454,0.306163,21353.0,21350.0,0.43988102]
[1674233414721,0.306163,21353.0,21350.0,1.37662702]
[1674233414722,0.02351864,21353.0,21350.0,1.37662702]
[1674233414994,0.306163,21352.0,21350.0,1.56112822]
[1674233415282,0.15,21354.0,21350.0,1.56112822]
[1674233415594,0.15,21354.0,21350.0,0.469382]
[1674233415595,0.02351864,21354.0,21350.0,0.469382]
[1674233415855,0.292525,21353.0,21350.0,0.001]
[1674233416122,0.013638,21352.0,21350.0,0.001]
[1674233416391,0.5758206,21351.0,21350.0,0.001]
[1674233416916,1.5125446,21351.0,21350.0,0.001]
[1674233417169,1.52212151,21351.0,21350.0,0.001]
[1674233417425,1.67212151,21351.0,21350.0,0.001]
[1674233417689,1.76412151,21351.0,21350.0,0.001]
[1674233418231,2.12698113,21351.0,21350.0,0.001]
[1674233418504,1.65861913,21351.0,21350.0,0.001]
[1674233418758,1.09825713,21351.0,21350.0,0.001]
[1674233419052,1.19025713,21351.0,21350.0,0.001]
[1674233419528,0.80538462,21351.0,21350.0,0.001]
[1674233419530,1.08863741,21351.0,21350.0,0.001]
[1674233419800,1.70774845,21351.0,21350.0,0.001]
[1674233420071,1.66574662,21351.0,21350.0,0.001]
[1674233420333,1.55910326,21351.0,21350.0,0.001]
[1674233420588,0.67585401,21351.0,21350.0,0.001]
[1674233421106,0.384525,21351.0,21350.0,0.09298]
[1674233421376,0.384525,21351.0,21350.0,0.38751584]
[1674233421626,0.420525,21351.0,21350.0,0.38751584]
[1674233421925,0.128,21351.0,21350.0,0.38751584]
[1674233422157,0.128,21351.0,21350.0,0.001]
[1674233422417,0.73374691,21351.0,21350.0,0.001]
[1674233422681,0.81774691,21351.0,21350.0,0.002]
[1674233422948,0.73374691,21351.0,21350.0,0.001]
[1674233423231,0.81774691,21351.0,21350.0,0.002]
[1674233423495,0.036,21351.0,21350.0,0.54725496]
[1674233423764,0.12,21351.0,21350.0,0.54825496]
[1674233424021,0.12,21351.0,21350.0,0.45418411]
[1674233424585,0.12,21351.0,21350.0,0.87630838]
[1674233424850,0.12,21351.0,21350.0,0.72630838]
[1674233425131,0.036,21351.0,21350.0,0.39926038]
[1674233425402,0.119,21351.0,21350.0,0.73097638]
[1674233425962,0.119,21351.0,21350.0,1.00643302]
[1674233426186,0.119,21351.0,21350.0,0.60817264]
[1674233426444,0.119,21351.0,21350.0,0.75817264]
[1674233427308,0.119,21351.0,21350.0,1.05817264]
[1674233427515,1e-08,21351.0,21350.0,1.39739361]